[Event "Croatian Team Cup Final 2022"]
[Site "Vodice"]
[Date "2022.05.18"]
[Round "1.6"]
[White "Kostanjsek, Zorko"]
[Black "Stevic, Hrvoje"]
[Result "1/2-1/2"]
[ECO "A28"]
[WhiteElo "2115"]
[BlackElo "2558"]
[Annotator "TA"]
[PlyCount "63"]
[EventDate "2022.05.18"]
[EventType "team-tourn"]
[EventCountry "CRO"]
[SourceTitle "playchess.com"]
[Source "ChessBase"]
[SourceQuality "1"]
[TimeControl "40/5400+30:1800+30"]

{[%evp 9,63,7,6,6,6,10,11,0,25,0,7,0,0,0,0,-2,0,0,0,0,0,0,0,0,0,0,0,-51,-53,-47,-37,-44,-45,-77,-56,-44,-56,-50,-60,-106,-114,-113,-116,-111,-96,-134,-83,-98,22,14,25,0,0,0,10,0]} 1. c4 {[%emt 0:00:12]} e5 {[%emt 0:00:28]} 2. Nc3 {[%emt 0:00:18]} Nc6 {[%emt 0:00:10]} 3. Nf3 {[%emt 0:00:31]} Nf6 {[%emt 0:00:42]} 4. e4 {[%emt 0:00:24]} Bb4 {[%emt 0:00:48]} 5. d3 {[%emt 0:00:06]} d6 {[%emt 0:00:34]} 6. a3 {[%emt 0:00:16] A28: English Opening: Four Knights Variation.} Bc5 {[%emt 0:00:20]} 7. b4 {[%emt 0:00:56]} Bb6 {[%emt 0:00:07]} 8. Na4 {[%emt 0:02:24]} Bg4 {[%emt 0:00:37]} 9. Nxb6 {[%emt 0:00:10]} axb6 {[%emt 0:00:08]} 10. Bb2 {[%emt 0:00:07]} Nd7 {[%emt 0:02:12]} 11. Be2 {[%emt 0:02:57]} h5 {[%emt 0:01:17]} 12. O-O {[%emt 0:04:52]} Bxf3 {[%emt 0:03:41]} 13. Bxf3 {[%emt 0:00:49] [#]} Qf6 $146 {[%emt 0:09:25]} ({Predecessor:} 13... Qg5 14. Be2 Nf8 15. f4 exf4 16. Qd2 Ng6 17. d4 O-O 18. Bd3 Rfe8 19. Kh1 h4 {0-1 (30) Levin,G (2332)-Stevic,H (2587) Terme Catez 2022}) 14. Be2 {[%emt 0:04:27]} g5 {[%emt 0:02:24]} 15. Qd2 {[%emt 0:09:11]} Nf8 {[%emt 0:30:58]} 16. b5 {[%emt 0:24:28]} Nd4 {[%emt 0:14:30]} 17. Bxd4 {[%emt 0:02:36]} exd4 {[%emt 0:00:03]} 18. e5 {[%emt 0:07:14]} ({White should try} 18. f4 $11) 18... dxe5 $15 {[%emt 0:01:46]} 19. Bf3 {[%emt 0:00:28]} Rb8 {[%emt 0:05:47]} 20. Rfe1 {[%emt 0:01:40][%cal Oe1e5] [#] Threatens to win with Rxe5+!} Nd7 {[%emt 0:01:18]} 21. a4 {[%emt 0:01:02][%cal Oc4c5]} Kf8 {[%emt 0:02:36]} 22. a5 {[%emt 0:02:12]} bxa5 {[%emt 0:06:04]} 23. Qxa5 {[%emt 0:00:57]} Qd6 {[%emt 0:00:43]} 24. g3 {[%emt 0:04:31]} (24. Qa7 $15) 24... Nc5 $17 {[%emt 0:01:32]} 25. Rad1 {[%emt 0:03:26]} Kg7 {[%emt 0:00:26]} 26. Qd2 {[%emt 0:00:27]} f6 {[%emt 0:00:54]} 27. Qe2 {[%emt 0:02:33]} Kg6 {[%emt 0:01:35]} (27... Na4 $142 {White must now prevent ...Nc3.} 28. Ra1 Nc3) 28. Ra1 {[%emt 0:01:46]} Rbe8 {[%emt 0:00:53] [#]} (28... Qd7 $17 29. Ra7 Qf5) 29. Bxb7 $1 $11 {[%emt 0:05:07]} f5 {[%emt 0:04:55]} 30. Bc6 {[%emt 0:04:36]} Re7 {[%emt 0:00:16]} 31. Bd5 {[%emt 0:00:31][%cal Of2f4]} Rhe8 {[%emt 0:01:05]} 32. Bf3 {[%emt 0:01:03] Weighted Error Value: White=0.10 (very precise) /Black=0.11 (very precise)} 1/2-1/2

[Event "Croatian Team Cup Final 2022"]
[Site "Vodice"]
[Date "2022.05.18"]
[Round "1.7"]
[White "Palac, Mladen"]
[Black "Hadzic, Sabahet"]
[Result "1-0"]
[ECO "D37"]
[WhiteElo "2505"]
[BlackElo "1985"]
[Annotator "TA"]
[PlyCount "113"]
[EventDate "2022.05.18"]
[EventType "team-tourn"]
[EventCountry "CRO"]
[SourceTitle "playchess.com"]
[Source "ChessBase"]
[SourceQuality "1"]
[TimeControl "40/5400+30:1800+30"]

{[%evp 12,113,38,20,27,0,35,32,62,19,17,19,16,12,14,13,19,12,19,5,22,26,19,22,27,13,18,32,25,20,31,16,38,24,26,25,32,38,62,41,45,36,28,31,32,31,75,74,83,50,94,94,108,90,88,37,49,55,33,37,66,27,29,24,55,27,27,35,44,10,38,38,47,49,90,80,128,114,210,210,191,193,513,513,513,513,513,513,503,410,533,513,576,476,487,482,474,185,500,476,508,439,29988,29989]} 1. d4 {[%emt 0:04:55]} e6 {[%emt 0:01:06]} 2. Nf3 {[%emt 0:00:41]} Nf6 {[%emt 0:01:25]} 3. c4 {[%emt 0:00:59]} d5 {[%emt 0:04:28]} 4. Nc3 {[%emt 0:00:46]} Be7 {[%emt 0:07:13]} 5. Bf4 {[%emt 0:00:24]} c6 {[%emt 0:02:14]} 6. e3 {[%emt 0:00:37]} Nbd7 {[%emt 0:03:14]} 7. h3 {[%emt 0:00:20]} a6 {[%emt 0:06:39] D37: Queen's Gambit Declined: 5 Bf4.} 8. a3 {[%emt 0:06:27]} O-O {[%emt 0:10:35]} 9. c5 {[%emt 0:14:34]} Re8 {[%emt 0:06:06] White is slightly better.} 10. Bd3 {[%emt 0:04:51] [#] White is more active.} Bxc5 $146 {[%emt 0:14:24]} ({Predecessor:} 10... b6 11. b4 a5 12. O-O bxc5 13. bxc5 Ba6 14. Bxa6 Rxa6 15. Qc2 Nf8 16. Rab1 Ng6 {1-0 (24) Ribli,Z (2575)-Brumen,D (2373) Slovenia 2013}) 11. dxc5 {[%emt 0:01:33]} e5 {[%emt 0:01:07] [#]} 12. Nxe5 {[%emt 0:23:39]} Nxe5 {[%emt 0:03:26]} 13. Bc2 {[%emt 0:01:21]} Ng6 {[%emt 0:09:31]} 14. Bxg6 {[%emt 0:08:28]} hxg6 {[%emt 0:01:17]} 15. Na4 {[%emt 0:05:54]} Nd7 {[%emt 0:04:00] Prevents Nb6.} 16. O-O {[%emt 0:01:54]} b5 {[%emt 0:01:38]} 17. cxb6 $1 {[%emt 0:00:07]} Nxb6 {[%emt 0:00:12]} 18. Rc1 {[%emt 0:01:34]} Nxa4 {[%emt 0:00:22]} 19. Qxa4 {[%emt 0:00:05]} Bd7 {[%emt 0:00:17]} 20. Rc5 {[%emt 0:02:42]} g5 {[%emt 0:02:23]} 21. Bg3 {[%emt 0:00:13]} Qb6 {[%emt 0:00:34]} 22. b4 {[%emt 0:00:37]} Re4 {[%emt 0:00:46] Strongly threatening ...Qxc5.} 23. Rfc1 {[%emt 0:02:22]} f5 {[%emt 0:02:31]} 24. Qa5 {[%emt 0:03:53]} Qxa5 {[%emt 0:00:47]} 25. Rxa5 {[%emt 0:00:02]} ({Don't play} 25. bxa5 f4 26. exf4 gxf4 $15) 25... f4 {[%emt 0:00:42]} 26. exf4 {[%emt 0:00:02]} gxf4 {[%emt 0:00:13]} 27. f3 {[%emt 0:00:31]} Rd4 {[%emt 0:00:37]} 28. Bf2 {[%emt 0:04:28]} Rd3 {[%emt 0:01:42]} 29. Re1 {[%emt 0:00:17]} Kf7 {[%emt 0:00:53] Against Re7+} 30. Bh4 {[%emt 0:00:03]} Be6 {[%emt 0:00:56]} 31. Bg5 {[%emt 0:02:20]} Rd4 {[%emt 0:00:33]} 32. h4 {[%emt 0:01:40]} Rc4 {[%emt 0:01:59]} 33. Rc5 {[%emt 0:00:35]} (33. Kf2 $16) 33... Rxc5 $14 {[%emt 0:00:55]} 34. bxc5 {[%emt 0:00:01][%mdl 4096] Endgame KRB-KRB} Rb8 $1 {[%emt 0:00:42] Prevents Rb1.} 35. Bxf4 {[%emt 0:00:05]} Rb3 {[%emt 0:00:19]} 36. Be5 {[%emt 0:01:09][%cal Oe5g7] And now Bxg7! would win.} (36. Re3 $5 {[%cal Re3b3]} Rb5 37. Bd6 $16) 36... g6 $1 {[%emt 0:01:25]} 37. a4 {[%emt 0:05:58]} a5 {[%emt 0:00:26]} 38. Kf2 {[%emt 0:02:38]} Rb4 {[%emt 0:00:10][%csl LRa4,LRh4]} 39. Ra1 {[%emt 0:00:16]} Rc4 {[%emt 0:02:30]} 40. Bd6 {[%emt 0:00:00]} Rxh4 {[%emt 0:00:51]} 41. g4 {[%emt 0:00:36]} d4 {[%emt 0:05:13]} 42. Rd1 {[%emt 0:01:52]} Bd5 {[%emt 0:00:00]} 43. Rxd4 {[%emt 0:00:15]} Rh1 {[%emt 0:03:30] [#]} (43... Rh8 $142) 44. Rf4+ $1 $16 {[%emt 0:02:24]} Kg7 {[%emt 0:00:21]} (44... Kg8 $16 {might work better.}) 45. Be5+ $18 {[%emt 0:01:03]} Kg8 {[%emt 0:00:54]} 46. Rf6 {[%emt 0:00:19]} Rb1 $2 {[%emt 0:01:55]} (46... g5 {is more resistant.} 47. Rg6+ Kf7 48. Rxg5 Rb1 49. Rf5+ Ke6) 47. Rxg6+ {[%emt 0:00:31]} Kf7 {[%emt 0:00:02]} 48. Rf6+ {[%emt 0:04:03]} Ke7 {[%emt 0:00:06]} 49. g5 {[%emt 0:00:18][%cal Bg4g5,Bg5g6,Bg6g7][%mdl 32]} Rb4 {[%emt 0:01:39]} 50. Bd6+ {[%emt 0:01:16]} Kd7 {[%emt 0:00:15]} 51. g6 {[%emt 0:00:17]} Rxa4 {[%emt 0:00:13]} 52. g7 {[%emt 0:10:18] Hoping for Be5.} Ra2+ {[%emt 0:01:19]} 53. Kg3 {[%emt 0:00:32]} Ra1 {[%emt 0:00:15]} 54. Kh2 {[%emt 0:07:42] Against Rg1} (54. Be5 Rc1 55. Rd6+ Ke7 56. Bf6+ (56. Rxd5 cxd5 57. Bb2 Rg1+ 58. Kf4 Kf7 $15) 56... Kf7 57. Bd4) 54... Ra2+ {[%emt 0:02:56]} (54... Re1 {is a better chance.} 55. Bf8 Ke8 56. Rxc6 Kf7) 55. Kh3 {[%emt 0:00:19]} Ra1 {[%emt 0:00:29]} 56. Bg3 {[%emt 0:00:20] Intending Rd6+ and mate.} a4 {[%emt 0:00:47]} (56... Ke7 $18 57. Rxc6 a4) 57. Rd6+ {[%emt 0:00:10] Weighted Error Value: White=0.15 (very precise) /Black=0.43} 1-0

[Event "Croatian Team Cup Final 2022"]
[Site "Vodice"]
[Date "2022.05.18"]
[Round "1.8"]
[White "Petricevic, Petar"]
[Black "Zelcic, Robert"]
[Result "0-1"]
[ECO "D02"]
[WhiteElo "1705"]
[BlackElo "2497"]
[Annotator "TA"]
[PlyCount "72"]
[EventDate "2022.05.18"]
[EventType "team-tourn"]
[EventCountry "CRO"]
[SourceTitle "playchess.com"]
[Source "ChessBase"]
[SourceQuality "1"]
[TimeControl "40/5400+30:1800+30"]

{[%evp 12,72,0,-27,-6,-51,-45,-47,-25,-17,-9,-21,-23,-55,-47,-66,-69,-75,-68,-70,6,-86,-67,-62,-72,-130,-121,-130,-127,-128,-111,-108,-118,-182,-182,-232,-237,-339,-359,-389,-378,-360,-331,-404,-391,-536,-502,-480,-506,-598,-588,-912,-444,-612,-412,-778,-763,-936,-906,-2940,-1938,-1256,-1230]} 1. Nf3 {[%emt 0:00:15]} d5 {[%emt 0:00:19]} 2. g3 {[%emt 0:01:07]} c5 {[%emt 0:00:06]} 3. Bg2 {[%emt 0:02:17]} Nc6 {[%emt 0:00:07]} 4. d4 {[%emt 0:01:32]} Nf6 {[%emt 0:08:51]} 5. O-O {[%emt 0:03:03]} e6 {[%emt 0:00:03]} 6. c3 {[%emt 0:02:10]} Be7 {[%emt 0:01:14]} 7. Bg5 {[%emt 0:04:58]} O-O {[%emt 0:03:45] [#] D02: 1 d4 d5 2 Nf3 sidelines, including 2...Nf6 3 g3 and 2...Nf6 3 Bf4.} 8. a4 $146 {[%emt 0:04:52]} ({Predecessor:} 8. e3 b6 9. Nbd2 h6 10. Bxf6 Bxf6 11. Re1 Bb7 12. Qb3 Qc7 13. Rad1 Rfd8 14. a3 Rac8 15. Qa2 {½-½ (58) Azaladze,S (2439)-Le,Q (2709) Chess.com INT 2020}) 8... Qb6 {[%emt 0:01:34]} 9. Bc1 {[%emt 0:12:09]} Bd7 {[%emt 0:01:02] Black is slightly better.} 10. dxc5 {[%emt 0:01:44]} Bxc5 {[%emt 0:01:07]} 11. b4 {[%emt 0:00:08]} Be7 {[%emt 0:00:27]} 12. a5 {[%emt 0:01:13]} Qc7 {[%emt 0:00:18]} 13. Bb2 {[%emt 0:06:27]} Rfd8 {[%emt 0:00:41] Black is more active.} 14. Qb3 {[%emt 0:01:39]} e5 {[%emt 0:01:19]} 15. Na3 {[%emt 0:06:38][%cal Oe2e4]} Be6 {[%emt 0:00:30]} (15... e4 $15 16. Nd2 Be6) 16. Nc2 {[%emt 0:03:39]} (16. Ng5 $1 $11 {remains equal.}) 16... h6 {[%emt 0:00:59]} 17. Rfd1 {[%emt 0:02:36]} a6 {[%emt 0:00:25]} 18. e3 {[%emt 0:02:18] White is now going downhill.} ({Better is} 18. Qa4) 18... Rac8 $17 {[%emt 0:00:26]} 19. Qa4 {[%emt 0:02:53]} Bg4 {[%emt 0:00:39]} 20. Rdc1 {[%emt 0:05:54]} e4 {[%emt 0:03:11]} 21. Nfd4 {[%emt 0:01:13]} Ne5 {[%emt 0:00:06][%cal Bc6e5,Be5c4,Bc4e3][%mdl 32]} 22. Ne1 {[%emt 0:08:26]} (22. b5 $17) 22... Nh7 $19 {[%emt 0:03:38]} 23. f3 {[%emt 0:05:17]} (23. Rcb1 $142) 23... exf3 {[%emt 0:00:10]} 24. Ndxf3 {[%emt 0:00:37]} (24. Nexf3 $142 Nc4 25. Qc2) 24... Nc4 {[%emt 0:00:09][%csl LRb2,LRe3]} 25. Ba3 {[%emt 0:04:39]} Nxe3 {[%emt 0:00:08]} 26. b5 {[%emt 0:01:28]} Bxa3 {[%emt 0:01:20]} 27. Rxa3 {[%emt 0:02:01]} Qc5 {[%emt 0:02:13]} 28. Nd4 {[%emt 0:02:35]} axb5 {[%emt 0:00:13]} 29. Qb3 {[%emt 0:03:08]} Nxg2 {[%emt 0:01:08]} 30. Nxg2 {[%emt 0:00:20]} b4 {[%emt 0:00:13]} 31. Ra4 {[%emt 0:02:38] [#]} bxc3 {[%emt 0:00:06]} (31... Qxd4+ $142 $3 {[%mdl 512]} 32. cxd4 Rxc1+ 33. Kf2 Ng5) 32. Ne3 {[%emt 0:01:11]} Nf6 {[%emt 0:02:25] Strongly threatening ...Bd7.} 33. Kg2 {[%emt 0:00:48]} (33. Qb4 $142) 33... Qe7 {[%emt 0:01:37] Black is clearly winning.} 34. Rxc3 {[%emt 0:04:05]} Qe4+ {[%emt 0:00:40]} 35. Kf2 {[%emt 0:01:12]} Rxc3 {[%emt 0:00:39]} 36. Qxc3 {[%emt 0:00:02]} Qh1 {[%emt 0:00:07] Weighted Error Value: White=0.85/Black=0.50} 0-1

[Event "Croatian Team Cup Final 2022"]
[Site "Vodice"]
[Date "2022.05.18"]
[Round "1.9"]
[White "Nemec, Vjekoslav"]
[Black "Livaic, Leon"]
[Result "0-1"]
[ECO "B62"]
[WhiteElo "2247"]
[BlackElo "2562"]
[Annotator "TA"]
[PlyCount "256"]
[EventDate "2022.05.18"]
[EventType "team-tourn"]
[EventCountry "CRO"]
[SourceTitle "playchess.com"]
[Source "ChessBase"]
[SourceQuality "1"]
[TimeControl "40/5400+30:1800+30"]

{[%evp 30,256,49,37,61,45,47,0,38,26,22,39,44,45,46,0,0,0,22,-2,106,96,90,103,98,28,28,0,0,0,-6,0,0,-18,-18,-11,-20,-59,0,-78,-80,-106,-47,-78,-78,-453,-453,-441,-434,-324,-125,-141,-83,-90,-78,-78,-78,-88,-77,-100,-100,-104,-100,-102,-102,-102,-102,-106,-97,-97,-98,-107,-97,-97,-97,-98,-70,-98,-100,-106,-104,-105,-102,-102,-104,-108,-110,-111,-110,-111,-111,-111,-106,-123,-111,-119,-118,-115,-122,-117,-104,-107,-82,-122,-80,-80,-76,-80,-80,-80,-80,-80,-80,-80,-80,-81,-81,-80,-80,-80,-78,-78,-76,-75,-58,-80,-78,-77,-76,-76,-74,-77,-77,-80,-80,-95,-88,-111,-80,-80,-75,-77,-75,-75,-75,-75,-73,-78,-78,-78,-67,-70,-70,-70,-45,-45,0,-70,-70,-70,-70,-139,-145,-148,-130,-135,-133,-140,-126,-147,-143,-141,-139,-146,-142,-147,-139,-143,-142,-29972,-29973,-29977,-29978,-29978,-29979,-29990,-29991,-29991,-29978,-29973,-29969,-29966,-29970,-29970,-642,-29976,-29974,-29974,-29975,-29975,-4092,-911,-772,-623,0,-4137,0,-29973,-29967,-29968,-29969,-29959,-29956,-29982,-29983,-29982,0,-29968,-29969,-29981,-29982,-29986,-29987,-29987,-29988,-29991,-29992,-29994,-29995]} 1. e4 {[%emt 0:01:10]} c5 {[%emt 0:01:10]} 2. Nf3 {[%emt 0:00:17]} Nc6 {[%emt 0:00:19]} 3. d4 {[%emt 0:00:45]} cxd4 {[%emt 0:00:05]} 4. Nxd4 {[%emt 0:00:05]} Nf6 {[%emt 0:00:07]} 5. Nc3 {[%emt 0:00:05]} d6 {[%emt 0:00:06]} 6. Bg5 {[%emt 0:00:29]} e6 {[%emt 0:00:13]} 7. Qd3 {[%emt 0:00:50]} Bd7 {[%emt 0:02:10]} 8. O-O-O {[%emt 0:01:30]} a6 {[%emt 0:00:23]} 9. f4 {[%emt 0:01:18]} Be7 {[%emt 0:00:39]} 10. Nf3 {[%emt 0:02:30]} Qa5 {[%emt 0:01:24]} 11. Kb1 {[%emt 0:06:17]} h6 {[%emt 0:05:05]} 12. Bxf6 {[%emt 0:08:35]} gxf6 {[%emt 0:00:05]} 13. Nd2 {[%emt 0:05:50]} b5 {[%emt 0:02:28]} 14. Qe3 {[%emt 0:07:28]} Qc7 {[%emt 0:07:44]} 15. Bd3 {[%emt 0:05:40]} h5 {[%emt 0:05:51]} 16. Rhe1 {[%emt 0:03:38]} Qa7 {[%emt 0:02:01]} 17. Qf3 {[%emt 0:06:32]} Rc8 {[%emt 0:11:17]} 18. Nb3 {[%emt 0:03:27]} (18. Ne2 $14) 18... b4 {[%emt 0:02:54]} 19. Ne2 {[%emt 0:00:59]} Qb6 {[%emt 0:09:09]} 20. Nd2 {[%emt 0:04:47]} a5 {[%emt 0:00:24]} 21. Nc4 {[%emt 0:00:53]} Qc5 {[%emt 0:00:20]} 22. f5 {[%emt 0:01:57]} (22. b3 $14) 22... a4 {[%emt 0:07:45]} 23. Nf4 {[%emt 0:07:33]} Nd4 {[%emt 0:01:10]} (23... a3 $5 {[%cal Rc6e5]} 24. fxe6 (24. Nxh5 $2 Ne5 $19) 24... fxe6 $11) 24. Qe3 {[%emt 0:01:06]} b3 {[%emt 0:07:49]} (24... e5 $11 25. Nd5 Bc6) 25. cxb3 {[%emt 0:02:43]} (25. c3 {looks sharper.} bxa2+ 26. Kxa2 Nb5 27. Nb6) 25... axb3 {[%emt 0:00:05]} 26. axb3 {[%emt 0:01:15]} Nxb3 {[%emt 0:09:44]} 27. Qxc5 {[%emt 0:01:36]} ({White should try} 27. Bc2 $1 $16 {[%cal Rc2b3]} Nd4 28. Rxd4) 27... Nxc5 $11 {[%emt 0:01:20]} 28. Nb6 {[%emt 0:03:00]} (28. Bc2 $5 {[%cal Rc4d6]}) 28... Rb8 {[%emt 0:01:18]} 29. Nxd7 {[%emt 0:00:11]} Kxd7 {[%emt 0:00:04]} 30. Bc4 {[%emt 0:03:41]} Rhc8 {[%emt 0:05:19]} 31. fxe6+ {[%emt 0:02:19]} fxe6 {[%emt 0:00:06]} 32. Rd2 {[%emt 0:01:22]} h4 {[%emt 0:03:08]} 33. e5 {[%emt 0:01:50]} d5 {[%emt 0:03:34]} (33... fxe5 $15 34. Rxe5 Rxb2+ $1 35. Kxb2 Bf6) 34. Bxd5 {[%emt 0:01:28]} (34. exf6 $1 $11 {remains equal.} Bd6 35. Nxd5 $1 exd5 36. Bxd5 (36. Rxd5 Rb4 $17)) 34... exd5 $17 {[%emt 0:00:08]} 35. Nxd5 {[%emt 0:00:01]} fxe5 {[%emt 0:01:30]} (35... f5 $1 $17 {Hoping for ...Ke6.} 36. Nb6+ Ke6 37. Nxc8 Rxc8) 36. Rxe5 {[%emt 0:04:07]} Bd6 {[%emt 0:00:24]} 37. Ne7 $2 {[%emt 0:02:03][%mdl 8192]} (37. Re1 $17 {is a better chance.}) 37... Nb3 $1 $19 {[%emt 0:02:49]} 38. Rd1 {[%emt 0:00:24]} Rc1+ $1 {[%emt 0:01:38]} 39. Rxc1 {[%emt 0:00:01]} Bxe5 $2 {[%emt 0:02:10]} (39... Nxc1 $19 {has better winning chances.} 40. Rd5 Kxe7 41. Kxc1 Bxh2) 40. Re1 $17 {[%emt 0:00:00]} Nd2+ {[%emt 0:00:00]} (40... Bxh2 $2 41. Nf5) (40... Bf4 $142 41. Ng6 Rc8 $1 42. Re7+ (42. Nxf4 $2 Nd2+ 43. Ka2 Ra8#) 42... Kd6) 41. Kc2 $17 {[%emt 0:04:00]} Rxb2+ {[%emt 0:03:17]} 42. Kd3 {[%emt 0:00:22]} Bxh2 {[%emt 0:11:09]} 43. Nf5 {[%emt 0:03:21]} Nb3 {[%emt 0:02:57]} 44. Nxh4 {[%emt 0:04:06]} Nc5+ {[%emt 0:00:47]} 45. Kc4 {[%emt 0:02:53]} Rc2+ {[%emt 0:00:41]} 46. Kd5 {[%emt 0:00:17]} Bg3 {[%emt 0:02:15]} 47. Rh1 {[%emt 0:00:04]} Ne6 {[%emt 0:00:25]} 48. Nf3 {[%emt 0:01:43]} Rc5+ {[%emt 0:01:49]} (48... Rxg2 $6 49. Rh7+ Ke8 50. Kxe6 Re2+ 51. Kf5 $11) 49. Ke4 {[%emt 0:00:02]} Ra5 {[%emt 0:00:46]} 50. Rd1+ {[%emt 0:05:46]} Ke7 {[%emt 0:00:15]} 51. Nd4 {[%emt 0:02:11]} Ng5+ {[%emt 0:01:49]} 52. Kd3 {[%emt 0:00:56]} Ra3+ {[%emt 0:00:28]} 53. Ke2 {[%emt 0:00:18]} Kf6 {[%emt 0:02:27]} 54. Rd3 {[%emt 0:01:21]} Ra2+ {[%emt 0:00:03]} 55. Rd2 {[%emt 0:00:09]} Ra8 {[%emt 0:00:28]} 56. Rd3 {[%emt 0:01:13]} Bf4 {[%emt 0:00:31]} 57. g3 {[%emt 0:02:53]} Ra2+ {[%emt 0:00:34]} 58. Kf1 {[%emt 0:00:12]} Bc7 {[%emt 0:00:49]} 59. Ne2 {[%emt 0:01:02]} Kf5 {[%emt 0:02:51]} 60. Nc3 {[%emt 0:01:25]} Rb2 {[%emt 0:02:04]} 61. Ne2 {[%emt 0:01:36]} Be5 {[%emt 0:01:12]} 62. Ra3 {[%emt 0:01:11]} Ne4 {[%emt 0:00:47]} 63. Rf3+ {[%emt 0:01:52]} Kg4 {[%emt 0:01:48]} 64. Re3 {[%emt 0:00:01]} Nd2+ {[%emt 0:01:00]} ({Of course not} 64... Bxg3 $6 65. Rxe4+ Kh3 66. Ng1+ Kh2 67. Re2+ Rxe2 68. Nxe2 $11) ({Weaker is} 64... Nxg3+ 65. Ke1 $15 (65. Nxg3 Bxg3 66. Re2 Rb1+ 67. Kg2 Bf4 $15)) 65. Kg2 {[%emt 0:02:00]} Bb8 {[%emt 0:00:51]} 66. Re8 {[%emt 0:00:35]} Kg5 {[%emt 0:01:00]} 67. Kh3 {[%emt 0:02:05]} Nf3 {[%emt 0:00:33]} 68. Rg8+ {[%emt 0:00:36]} Kh6 {[%emt 0:00:36]} 69. Nf4 {[%emt 0:00:47]} Kh7 {[%emt 0:01:04]} 70. Rc8 {[%emt 0:00:21]} Rb3 {[%emt 0:00:30]} 71. Kg4 {[%emt 0:00:41]} Nh2+ {[%emt 0:00:37]} 72. Kf5 {[%emt 0:00:14]} Nf1 {[%emt 0:00:09]} 73. Nh5 {[%emt 0:00:59]} Rb5+ {[%emt 0:00:31]} 74. Kg4 {[%emt 0:00:01]} Be5 {[%emt 0:00:22]} 75. Nf4 {[%emt 0:00:59]} Rb3 {[%emt 0:00:20]} 76. Kf5 {[%emt 0:00:40]} Bg7 {[%emt 0:00:12]} 77. Nh5 {[%emt 0:01:38]} Rb5+ {[%emt 0:00:14]} 78. Kg4 {[%emt 0:00:03]} Nh2+ {[%emt 0:01:21]} 79. Kh4 {[%emt 0:00:01]} Be5 {[%emt 0:00:36]} 80. Kh3 {[%emt 0:00:35]} Nf1 {[%emt 0:00:39]} 81. Rf8 {[%emt 0:00:51]} Ne3 {[%emt 0:00:26]} 82. Rf3 {[%emt 0:00:18]} Bd4 {[%emt 0:00:18]} 83. Nf4 {[%emt 0:02:02]} Rb1 {[%emt 0:00:18]} 84. Rf2 {[%emt 0:00:40]} Rb6 {[%emt 0:00:55]} 85. Ng2 {[%emt 0:01:14]} Rh6+ {[%emt 0:01:12]} 86. Nh4 {[%emt 0:00:01]} Kg8 {[%emt 0:00:28]} 87. Rf4 {[%emt 0:01:11]} Bb6 {[%emt 0:00:09]} 88. Re4 {[%emt 0:00:49]} Kf7 {[%emt 0:00:12]} 89. Rb4 {[%emt 0:00:22]} Rc6 {[%emt 0:00:39]} 90. Nf3 {[%emt 0:00:52]} Bc7 {[%emt 0:00:46]} 91. Re4 {[%emt 0:00:24]} Rh6+ {[%emt 0:00:24]} (91... Nc4 $5 92. Nd4 Rb6 $11) 92. Rh4 {[%emt 0:00:33]} Rc6 {[%emt 0:00:06]} (92... Rf6 $5 93. Rh7+ Kg6 94. Rxc7 Rxf3 $11) 93. Re4 $1 {[%emt 0:00:11]} Rc3 {[%emt 0:00:11]} ({Don't blunder} 93... Rh6+ $2 94. Rh4 Rc6 95. Rh7+ Ke8 96. Rh8+ Ke7 97. Rh7+ Kd8 98. Rh8+ Ke7 99. Rh7+ Ke8 100. Rh8+ Ke7 $19) (93... Nc4 $5 94. Nd4 Rg6 $11) 94. Ne5+ {[%emt 0:00:33]} Kg7 {[%emt 0:00:35]} 95. Ng4 {[%emt 0:02:10]} (95. Nd3 $15) 95... Nf5 $17 {[%emt 0:00:12]} 96. Kg2 {[%emt 0:00:45]} Rxg3+ {[%emt 0:00:04]} 97. Kf2 {[%emt 0:00:44]} Ra3 {[%emt 0:00:13]} 98. Rc4 {[%emt 0:00:38]} Bd6 {[%emt 0:00:38]} 99. Ke2 {[%emt 0:00:44]} Kf7 {[%emt 0:00:21]} 100. Kd2 {[%emt 0:00:57]} Ke6 {[%emt 0:00:07]} 101. Re4+ {[%emt 0:00:19]} Kd5 {[%emt 0:00:40]} 102. Nf6+ {[%emt 0:00:12]} Kc6 {[%emt 0:00:50]} 103. Ng4 {[%emt 0:00:15]} Bc5 {[%emt 0:00:31]} 104. Re5 $2 {[%emt 0:01:04][%mdl 8192] [#]} (104. Re6+ $17 Kd7 105. Re5) 104... Nd4 $1 {[%emt 0:00:21]} 105. Re8 {[%emt 0:00:30]} Bb4+ {[%emt 0:00:05]} 106. Kc1 {[%emt 0:00:27]} Bc3 {[%emt 0:01:05]} 107. Rb8 {[%emt 0:00:53]} Ra1+ {[%emt 0:00:17]} 108. Rb1 {[%emt 0:00:01]} Ra8 {[%emt 0:00:29]} 109. Ne3 {[%emt 0:02:02]} Rh8 {[%emt 0:01:08]} 110. Nd1 {[%emt 0:00:10]} Rh1 {[%emt 0:00:38]} 111. Rb8 {[%emt 0:00:17]} Kd5 {[%emt 0:00:15]} (111... Ba5 $142 112. Rg8 Kb5 113. Rg7 Bb4 114. Rc7 Bd6 115. Rb7+ Kc5 116. Kd2 Bf4+ 117. Ne3 Nf5 118. Rc7+ Kd6 119. Rf7 Bxe3+ 120. Ke2 Rh2+ 121. Kd3 Nh6 122. Rh7 Rh3 123. Rh8 Kd5 124. Rd8+ Kc6 125. Rh8 Rg3 126. Rc8+ Kd7 127. Rc3 Nf5 128. Kc4 Rg4+ 129. Kd3 Ke6 130. Rc8 Rg3 131. Re8+ Kd7 132. Ra8 Kc6 133. Ke2 Kd5 134. Rd8+ Nd6 135. Rb8 Bc5 136. Rf8 Ne4 137. Rh8 Nc3+ 138. Ke1 Kc4 139. Rc8 Rg1+ 140. Kd2 Rg2+ 141. Ke1 Ne4 142. Kf1 Rf2+ 143. Kg1 Re2+ 144. Rxc5+ Nxc5 145. Kh1 Kd3 146. Kg1 Ke4 147. Kh1 Kf3 148. Kg1 Re1+ 149. Kh2 Ne4 150. Kh3 Rh1#) 112. Rc8 {[%emt 0:00:31]} Bb4 {[%emt 0:00:15]} 113. Re8 {[%emt 0:01:36]} Kc4 {[%emt 0:00:34]} 114. Re3 {[%emt 0:00:34]} Ba5 {[%emt 0:03:30]} (114... Bf8 $142 115. Rc3+ Kd5 116. Rd3 Bb4 117. Re3 Kc4 118. Re4 Ba3+ 119. Kd2 Rh2+ 120. Ke1 Bb4+ 121. Kf1 Rh1+ 122. Kg2 Rxd1 123. Rf4 Bd6 124. Rf7 Rd2+ 125. Rf2 Rd3 126. Rf1 Rg3+ 127. Kf2 Rf3+ 128. Kg2 Rg3+ 129. Kf2 Rh3 130. Rg1 Rd3 131. Rc1+ Kd5 132. Kg2 Ke4 133. Rf1 Rg3+ 134. Kf2 Rf3+ 135. Kg2 Rg3+ 136. Kf2 Rf3+ 137. Kg2 Rg3+) 115. Ra3 $19 {[%emt 0:00:56]} Nb3+ {[%emt 0:00:00]} 116. Kc2 {[%emt 0:00:31]} Nd4+ {[%emt 0:00:00]} 117. Kc1 $1 {[%emt 0:00:02]} Bb4 {[%emt 0:00:27]} 118. Re3 $1 {[%emt 0:00:11]} Rf1 {[%emt 0:00:32]} 119. Rh3 {[%emt 0:00:30]} Rg1 {[%emt 0:00:44]} 120. Re3 {[%emt 0:00:17]} Bd6 {[%emt 0:00:35]} 121. Rc3+ {[%emt 0:00:33]} Kd5 {[%emt 0:00:08]} 122. Rd3 {[%emt 0:01:09]} Kc4 {[%emt 0:00:42]} 123. Rc3+ {[%emt 0:00:02]} Kb4 {[%emt 0:00:01]} 124. Rd3 {[%emt 0:00:29]} Bf4+ {[%emt 0:00:30]} 125. Kb2 {[%emt 0:00:20]} Rg2+ {[%emt 0:00:05]} 126. Kb1 {[%emt 0:00:20]} Nb5 {[%emt 0:00:09]} 127. Rd5 {[%emt 0:01:59]} Bh6 {[%emt 0:00:47]} 128. Rd3 {[%emt 0:00:58]} Na3+ {[%emt 0:00:17]} 0-1